lending/lending_fUSD_20240710
["ID","MTS","AMOUNT","RATE_DAILY","PERIOD"]
[331656593,1720606363284,-1300.0,0.000133,4]
[331656594,1720606363307,-1600.0,0.000134,4]
[331656595,1720606363330,-300.0,0.000135,4]
[331656596,1720606363354,-300.0,0.000136,4]
[331656597,1720606363383,-300.0,0.000137,5]
[331656598,1720606363412,-300.0,0.000138,5]
[331656599,1720606363449,-733.0,0.000139,5]
[331656600,1720606363472,-1152.07979419,0.00013916,5]
[331656601,1720606368776,1014.32314146,0.00011199,2]
[331656602,1720606389738,815.45312623,0.00011199,2]
[331656603,1720606414698,1055.71054162,0.00011199,2]
[331656604,1720606438948,155.93390486,0.00011199,2]
[331656605,1720606445083,346.68469279,0.00011199,2]
[331656606,1720606449433,527.41897284,0.00011199,2]
[331656607,1720606460926,235.70811098,0.00011199,2]
[331656608,1720606462959,316.59942391,0.00011199,2]
[331656609,1720606465397,358.72880849,0.00011199,2]
[331656610,1720606474385,400.0,0.00011199,2]
[331656611,1720606477813,311.52885108,0.00011199,2]
[331656612,1720606488838,155.2352893,0.00011199,2]
[331656613,1720606491525,157.29607944,0.00011199,2]
[331656614,1720606492354,385.62090767,0.00011199,2]
[331656615,1720606495990,366.80671841,0.00011199,2]
[331656616,1720606498958,254.10536199,0.00011199,2]
[331656617,1720606501456,218.26308981,0.00011199,2]
[331656618,1720606506124,264.7511771,0.00011199,2]
[331656619,1720606512121,433.7048666,0.00011199,2]
[331656620,1720606513282,424.96693983,0.00011199,2]
[331656621,1720606518626,209.39464551,0.00011199,2]
[331656622,1720606519136,303.74358298,0.00011199,2]
[331656623,1720606595912,313.12,0.00010764,2]
[331656624,1720606759326,85729.13579032,0.00010764,2]
[331656625,1720606793737,205.54834643,0.00011199,2]
[331656626,1720606796103,256.48650732,0.00010764,2]
[331656627,1720606841988,151.071919,0.00025,60]
[331656628,1720606856269,151.071919,0.00025,60]
[331656629,1720606857695,151.071919,0.00025,60]
[331656630,1720606862367,151.071919,0.00025,64]
[331656631,1720606863321,151.071919,0.00025,64]
[331656632,1720606864300,151.071919,0.00025,64]
[331656633,1720606870023,151.071919,0.00025,65]
[331656634,1720606870975,151.071919,0.00025,65]
[331656635,1720606871874,151.071919,0.00025,65]
[331656636,1720606876410,151.071919,0.00025,66]
[331656637,1720606877279,151.071919,0.00025,66]
[331656638,1720606878223,151.071919,0.00025,66]
[331656639,1720606882431,151.071919,0.00025,67]
[331656640,1720606883367,151.071919,0.00025,67]
[331656641,1720606884562,151.071919,0.00025,67]
[331656642,1720606893645,151.071919,0.00025,71]
[331656643,1720606893749,151.071919,0.00025,71]
[331656644,1720606894310,151.071919,0.00025,71]
[331656645,1720606898754,151.071919,0.00025,72]
[331656646,1720606899695,151.071919,0.00025,72]
[331656647,1720606900537,151.071919,0.00025,72]
[331656648,1720606905250,151.071919,0.00025,73]
[331656649,1720606906201,151.071919,0.00025,73]
[331656650,1720606907058,151.071919,0.00025,73]
[331656651,1720606911655,151.071919,0.00025,74]
[331656652,1720606912485,151.071919,0.00025,74]
[331656653,1720606913406,151.071919,0.00025,74]
[331656654,1720606918724,235.61149116,0.00011199,2]
[331656655,1720606919283,151.071919,0.00025,78]
[331656656,1720606920160,151.071919,0.00025,78]
[331656657,1720606921141,151.071919,0.00025,78]
[331656658,1720606926470,151.071919,0.00025,79]
[331656659,1720606926945,400.0,0.00011199,2]
[331656660,1720606927453,151.071919,0.00025,79]
[331656661,1720606928421,151.071919,0.00025,79]
[331656662,1720606933805,155.0,0.00011199,2]
[331656663,1720606936148,151.071919,0.00025,80]
[331656664,1720606937063,151.071919,0.00025,80]
[331656665,1720606937969,151.071919,0.00025,80]
[331656666,1720606943734,151.071919,0.00025,81]
[331656668,1720606944675,151.071919,0.00025,81]
[331656669,1720606945520,151.071919,0.00025,81]
[331656670,1720606965318,151.071919,0.00027,120]
[331656671,1720606965428,358.72880849,0.00011199,2]
[331656672,1720606966332,151.071919,0.00027,120]
[331656673,1720606967200,151.071919,0.00027,120]
[331656674,1720606974436,251.89538666,0.00011199,2]
[331656675,1720606985871,151.071919,0.00027,120]
[331656676,1720606986753,151.071919,0.00027,120]
[331656677,1720606987649,151.071919,0.00027,120]
[331656678,1720607050741,205.46417347,0.00011199,2]
[331656680,1720607149326,299.88853968,0.00011199,2]
[331656681,1720607186088,329.09,9.958e-05,2]
[331656682,1720607198304,-614.74212518,0.0001126,2]
[331656684,1720607344285,4689.47786067,0.00011199,2]
[331656685,1720607365386,603.42918677,0.0001126,2]
[331656692,1720607431845,-301.2900896,0.00011698,2]
[331656693,1720607431859,-572.5872104,0.00011698,2]
[331656694,1720607431869,-10.0731896,0.0001179,2]
[331656695,1720607431901,-189.9268104,0.0001179,2]
[331656696,1720607431911,-300.0,0.00011833,2]
[331656697,1720607431921,-9754.395014,0.00011834,2]
[331656698,1720607431930,-672.4,0.00011851,2]
[331656699,1720607431940,-160.15,0.00011894,2]
[331656700,1720607431950,-200.0,0.00011907,2]
[331656701,1720607431962,-170.1,0.00011908,2]
[331656702,1720607431971,-23890.0,0.00011935,2]
[331656703,1720607431980,-500.0,0.00011963,2]
[331656704,1720607431990,-150.0,0.00011963,2]
[331656705,1720607432000,-155.8,0.00012031,2]
[331656706,1720607432010,-250.0,0.00012116,2]
[331656707,1720607432019,-450.6,0.00012163,2]
[331656708,1720607432029,-499.99,0.00012163,2]
[331656709,1720607432038,-299.99,0.00012163,2]
[331656710,1720607432047,-800.0,0.00012216,2]
[331656711,1720607432057,-250.0,0.00012216,2]
[331656712,1720607432067,-329.09,0.00012221,2]
[331656713,1720607432079,-155.0,0.00012273,2]
[331656714,1720607432090,-1538.26608865,0.00012302,2]
[331656715,1720607432099,-4549.56887807,0.00012329,2]
[331656716,1720607432110,-10335.4725,0.00012339,2]
[331656717,1720607432119,-500.0,0.00012394,2]
[331656718,1720607432130,-178.44,0.00012468,2]
[331656719,1720607432141,-1213.69684516,0.00012505,2]
[331656720,1720607432151,-1213.69684516,0.00012505,2]
[331656721,1720607432162,-2127.43,0.00012505,2]
[331656722,1720607432172,-158.93,0.00012557,2]
[331656723,1720607432183,-150.0,0.00012575,2]
[331656724,1720607432192,-181.07,0.00012715,2]
[331656725,1720607432202,-169.45,0.00012715,2]
[331656726,1720607432213,-155.40245822,0.0001299,2]
[331656727,1720607432222,-233.24113414,0.00013128,2]
[331656728,1720607432232,-462.24258694,0.00013128,2]
[331656729,1720607432241,-14828.81530337,0.00013158,2]
[331656730,1720607433312,-15447.18469663,0.00013158,2]
[331656731,1720607433323,-173.44,0.00013242,2]
[331656732,1720607433334,-6739.3533,0.00013379,2]
[331656733,1720607433344,-160.15,0.0001338,2]
[331656734,1720607433355,-200.0,0.00013395,2]
[331656735,1720607433366,-264.597237,0.00013472,2]
[331656736,1720607433376,-1797.8025,0.00013498,2]
[331656737,1720607433386,-2500.0,0.00013498,2]
[331656738,1720607433395,-301.06799498,0.00013574,2]
[331656739,1720607433405,-173.76636118,0.00013598,2]
[331656740,1720607433415,-306.21444093,0.00013598,2]
[331656741,1720607433424,-4916.83986857,0.00013598,2]
[331656742,1720607433436,-8980.97957088,0.00013598,2]
[331656743,1720607433448,-460.43123519,0.00013598,2]
[331656744,1720607433468,-1111.46103322,0.00013598,2]
[331656745,1720607433479,-45596.83237958,0.00013598,2]
[331656746,1720607433496,-7724.39801256,0.00013598,2]
[331656747,1720607433506,-500.0,0.00013598,2]
[331656748,1720607433516,-2058.69469456,0.00013598,2]
[331656749,1720607433528,-5745.36347996,0.00013598,2]
[331656750,1720607433539,-381.54752548,0.00013598,2]
[331656751,1720607433549,-1000.0,0.00013598,2]
[331656752,1720607433559,-281.1116,0.00013598,2]
[331656753,1720607433569,-1000.0,0.00013598,2]
[331656754,1720607433579,-1565.42720972,0.00013598,2]
[331656755,1720607433591,-1085.42033485,0.00013598,2]
[331656756,1720607433609,-328.8373251,0.00013598,2]
[331656757,1720607433620,-97020.31513033,0.00013598,2]
[331656758,1720607433630,-7500.0,0.00013598,2]
[331656759,1720607433640,-385.08664704,0.00013599,2]
[331656760,1720607433650,-161.56209817,0.00013653,2]
[331656761,1720607433660,-186.40907942,0.00013688,2]
[331656762,1720607433670,-500.0,0.00013698,2]
[331656763,1720607433680,-500.0,0.00013698,2]
[331656764,1720607433689,-500.0,0.00013698,2]
[331656765,1720607433699,-500.0,0.00013698,2]
[331656766,1720607433708,-500.0,0.00013698,2]
[331656767,1720607433718,-500.0,0.00013698,2]
[331656768,1720607433728,-595.1,0.00013698,2]
[331656769,1720607433738,-500.0,0.00013698,2]
[331656770,1720607433747,-500.0,0.00013698,2]
[331656771,1720607433757,-500.0,0.00013698,2]
[331656772,1720607433767,-500.0,0.00013698,2]
[331656773,1720607433776,-500.0,0.00013698,2]
[331656774,1720607433786,-557.47,0.00013698,2]
[331656775,1720607433795,-500.0,0.00013698,2]
[331656776,1720607433805,-511.68,0.00013698,2]
[331656777,1720607433814,-500.0,0.00013698,2]
[331656778,1720607433824,-500.0,0.00013698,2]
[331656779,1720607433834,-500.0,0.00013698,2]
[331656780,1720607433843,-500.0,0.00013698,2]
[331656781,1720607433852,-500.0,0.00013698,2]
[331656782,1720607433862,-636.59,0.00013698,2]
[331656783,1720607433871,-394.62654214,0.00013698,2]
[331656784,1720607433881,-500.0,0.00013698,2]
[331656785,1720607433891,-500.0,0.00013698,2]
[331656786,1720607433900,-500.0,0.00013698,2]
[331656787,1720607433911,-241.7227975,0.00013698,2]
[331656788,1720607433924,-500.0,0.00013698,2]
[331656789,1720607433933,-500.0,0.00013698,2]
[331656790,1720607433943,-491.82109132,0.00013698,2]
[331656791,1720607433953,-500.0,0.00013698,2]
[331656792,1720607433963,-500.0,0.00013698,2]
[331656793,1720607433972,-500.0,0.00013698,2]
[331656794,1720607433982,-500.0,0.00013698,2]
[331656795,1720607433992,-500.0,0.00013698,2]
[331656796,1720607434002,-500.0,0.00013698,2]
[331656797,1720607434012,-500.0,0.00013698,2]
[331656798,1720607434023,-500.0,0.00013698,2]
[331656799,1720607434033,-500.0,0.00013698,2]
[331656800,1720607434043,-500.0,0.00013698,2]
[331656801,1720607434053,-430.49635707,0.00013698,2]
[331656802,1720607434062,-500.0,0.00013698,2]
[331656803,1720607434072,-500.0,0.00013698,2]
[331656804,1720607434081,-500.0,0.00013698,2]
[331656805,1720607434091,-500.0,0.00013698,2]
[331656806,1720607434101,-583.36,0.00013698,2]
[331656807,1720607434111,-500.0,0.00013698,2]
[331656808,1720607434120,-500.0,0.00013698,2]
[331656809,1720607434130,-521.18,0.00013698,2]
[331656810,1720607434140,-500.0,0.00013698,2]
[331656811,1720607434150,-500.0,0.00013698,2]
[331656812,1720607434160,-500.0,0.00013698,2]
[331656813,1720607434169,-500.0,0.00013698,2]
[331656814,1720607434179,-500.0,0.00013698,2]
[331656815,1720607434188,-500.0,0.00013698,2]
[331656816,1720607434198,-500.0,0.00013698,2]
[331656817,1720607434209,-500.0,0.00013698,2]
[331656818,1720607434219,-500.0,0.00013698,2]
[331656819,1720607434229,-500.0,0.00013698,2]
[331656820,1720607434238,-500.0,0.00013698,2]
[331656821,1720607434248,-500.0,0.00013698,2]
[331656822,1720607434258,-500.0,0.00013698,2]
[331656823,1720607434268,-500.0,0.00013698,2]
[331656824,1720607434278,-500.0,0.00013698,2]
[331656825,1720607434289,-500.0,0.00013698,2]
[331656826,1720607434299,-500.0,0.00013698,2]
[331656827,1720607434308,-500.0,0.00013698,2]
[331656828,1720607434318,-500.0,0.00013698,2]
[331656829,1720607434328,-500.0,0.00013698,2]
[331656830,1720607434337,-500.0,0.00013698,2]
[331656831,1720607434347,-500.0,0.00013698,2]
[331656832,1720607434356,-740.95,0.00013698,2]
[331656833,1720607434368,-500.0,0.00013698,2]
[331656834,1720607434377,-500.0,0.00013698,2]
[331656835,1720607434387,-500.0,0.00013698,2]
[331656836,1720607434397,-500.0,0.00013698,2]
[331656837,1720607434406,-500.0,0.00013698,2]
[331656838,1720607434416,-500.0,0.00013698,2]
[331656839,1720607434426,-500.0,0.00013698,2]
[331656840,1720607434435,-500.0,0.00013698,2]
[331656841,1720607434445,-500.0,0.00013698,2]
[331656842,1720607434454,-500.0,0.00013698,2]
[331656843,1720607434464,-500.0,0.00013698,2]
[331656844,1720607434474,-500.0,0.00013698,2]
[331656845,1720607434483,-500.0,0.00013698,2]
[331656846,1720607434492,-500.0,0.00013698,2]
[331656847,1720607434502,-500.0,0.00013698,2]
[331656848,1720607434511,-500.0,0.00013698,2]
[331656849,1720607434521,-500.0,0.00013698,2]
[331656850,1720607434530,-500.0,0.00013698,2]
[331656851,1720607434540,-500.0,0.00013698,2]
[331656852,1720607434549,-500.0,0.00013698,2]
[331656853,1720607434559,-595.45,0.00013698,2]
[331656854,1720607434568,-500.0,0.00013698,2]
[331656855,1720607434578,-500.0,0.00013698,2]
[331656856,1720607434587,-574.15,0.00013698,2]
[331656857,1720607434596,-500.0,0.00013698,2]
[331656858,1720607434605,-204.88034772,0.00013698,2]
[331656859,1720607434615,-500.0,0.00013698,2]
[331656860,1720607434624,-500.0,0.00013698,2]
[331656861,1720607434634,-500.0,0.00013698,2]
[331656862,1720607434644,-500.0,0.00013698,2]
[331656863,1720607434653,-500.0,0.00013698,2]
[331656864,1720607434663,-500.0,0.00013698,2]
[331656865,1720607434672,-500.0,0.00013698,2]
[331656866,1720607434682,-500.0,0.00013698,2]
[331656867,1720607434692,-500.0,0.00013698,2]
[331656868,1720607434702,-500.0,0.00013698,2]
[331656869,1720607434712,-566.5,0.00013698,2]
[331656870,1720607434722,-500.0,0.00013698,2]
[331656871,1720607434731,-500.0,0.00013698,2]
[331656872,1720607434741,-500.0,0.00013698,2]
[331656873,1720607434752,-500.0,0.00013698,2]
[331656874,1720607434761,-500.0,0.00013698,2]
[331656875,1720607434771,-500.0,0.00013698,2]
[331656876,1720607434781,-500.0,0.00013698,2]
[331656877,1720607434790,-500.0,0.00013698,2]
[331656878,1720607434800,-530.87,0.00013698,2]
[331656879,1720607434810,-500.0,0.00013698,2]
[331656880,1720607434820,-500.0,0.00013698,2]
[331656881,1720607434829,-593.14,0.00013698,2]
[331656882,1720607434839,-500.0,0.00013698,2]
[331656883,1720607434848,-500.0,0.00013698,2]
[331656884,1720607434858,-500.0,0.00013698,2]
[331656885,1720607434868,-568.29,0.00013698,2]
[331656886,1720607434878,-500.0,0.00013698,2]
[331656887,1720607434887,-500.0,0.00013698,2]
[331656888,1720607434897,-680.38,0.00013698,2]
[331656889,1720607434906,-505.98,0.00013698,2]
[331656890,1720607434915,-500.0,0.00013698,2]
[331656891,1720607434925,-500.0,0.00013698,2]
[331656892,1720607434934,-500.0,0.00013698,2]
[331656893,1720607434944,-500.0,0.00013698,2]
[331656894,1720607434953,-681.82,0.00013698,2]
[331656895,1720607434963,-550.15,0.00013698,2]
[331656896,1720607434974,-500.0,0.00013698,2]
[331656897,1720607434984,-543.12,0.00013698,2]
[331656898,1720607434994,-500.0,0.00013698,2]
[331656899,1720607435003,-500.0,0.00013698,2]
[331656900,1720607435012,-500.0,0.00013698,2]
[331656901,1720607435023,-500.0,0.00013698,2]
[331656902,1720607435034,-500.0,0.00013698,2]
[331656903,1720607435044,-500.0,0.00013698,2]
[331656904,1720607435054,-500.0,0.00013698,2]
[331656905,1720607435064,-500.0,0.00013698,2]
[331656906,1720607435077,-500.0,0.00013698,2]
[331656907,1720607435087,-500.0,0.00013698,2]
[331656908,1720607435096,-627.46446297,0.00013698,2]
[331656909,1720607435106,-500.0,0.00013698,2]
[331656910,1720607435114,-500.0,0.00013698,2]
[331656911,1720607435124,-500.0,0.00013698,2]
[331656912,1720607435134,-526.39,0.00013698,2]
[331656913,1720607435144,-500.0,0.00013698,2]
[331656914,1720607435153,-500.0,0.00013698,2]
[331656915,1720607435163,-638.22,0.00013698,2]
[331656916,1720607435172,-500.0,0.00013698,2]
[331656917,1720607435182,-500.0,0.00013698,2]
[331656918,1720607435192,-500.0,0.00013698,2]
[331656919,1720607435201,-500.0,0.00013698,2]
[331656920,1720607435212,-500.0,0.00013698,2]
[331656921,1720607435221,-500.0,0.00013698,2]
[331656922,1720607435230,-500.0,0.00013698,2]
[331656923,1720607435239,-751.25,0.00013698,2]
[331656924,1720607435248,-500.0,0.00013698,2]
[331656925,1720607435258,-1356.37,0.00013698,2]
[331656926,1720607435268,-500.0,0.00013698,2]
[331656927,1720607435279,-500.0,0.00013698,2]
[331656928,1720607435288,-658.86,0.00013698,2]
[331656929,1720607435297,-500.0,0.00013698,2]
[331656930,1720607435307,-906.62,0.00013698,2]
[331656931,1720607435316,-500.0,0.00013698,2]
[331656932,1720607435326,-711.58,0.00013698,2]
[331656933,1720607435336,-500.0,0.00013698,2]
[331656934,1720607435345,-500.0,0.00013698,2]
[331656935,1720607435354,-500.0,0.00013698,2]
[331656936,1720607435367,-500.0,0.00013698,2]
[331656937,1720607435376,-756.17,0.00013698,2]
[331656938,1720607435386,-500.0,0.00013698,2]
[331656939,1720607435396,-555.73,0.00013698,2]
[331656940,1720607435405,-536.35243489,0.00013698,2]
[331656941,1720607435415,-500.0,0.00013698,2]
[331656942,1720607435424,-500.0,0.00013698,2]
[331656943,1720607435433,-584.60765117,0.00013698,2]
[331656944,1720607435442,-500.0,0.00013698,2]
[331656945,1720607435451,-572.3,0.00013698,2]
[331656946,1720607435462,-921.58,0.00013698,2]
[331656947,1720607435471,-897.6,0.00013698,2]
[331656948,1720607435481,-500.0,0.00013698,2]
[331656949,1720607435491,-500.0,0.00013698,2]
[331656950,1720607435500,-500.0,0.00013698,2]
[331656951,1720607435509,-500.0,0.00013698,2]
[331656952,1720607435519,-500.0,0.00013698,2]
[331656953,1720607435528,-500.0,0.00013698,2]
[331656954,1720607435537,-500.0,0.00013698,2]
[331656955,1720607435547,-668.21,0.00013698,2]
[331656956,1720607435556,-511.66,0.00013698,2]
[331656957,1720607435566,-837.51,0.00013698,2]
[331656958,1720607435575,-533.44,0.00013698,2]
[331656959,1720607435585,-508.55,0.00013698,2]
[331656960,1720607435595,-500.0,0.00013698,2]
[331656961,1720607435604,-500.0,0.00013698,2]
[331656962,1720607435613,-462.3299498,0.00013698,2]
[331656963,1720607435624,-544.13,0.00013698,2]
[331656964,1720607435633,-500.0,0.00013698,2]
[331656965,1720607435642,-500.0,0.00013698,2]
[331656966,1720607435651,-544.93,0.00013698,2]
[331656967,1720607435660,-500.0,0.00013698,2]
[331656968,1720607435670,-500.0,0.00013698,2]
[331656969,1720607435679,-500.0,0.00013698,2]
[331656970,1720607435689,-500.0,0.00013698,2]
[331656971,1720607435699,-693.1,0.00013698,2]
[331656972,1720607435708,-531.85,0.00013698,2]
[331656973,1720607435721,-500.0,0.00013698,2]
[331656974,1720607435730,-500.0,0.00013698,2]
[331656975,1720607435739,-500.0,0.00013698,2]
[331656976,1720607435749,-1044.79,0.00013698,2]
[331656977,1720607435759,-500.0,0.00013698,2]
[331656978,1720607435768,-771.31,0.00013698,2]
[331656979,1720607435777,-532.63,0.00013698,2]
[331656980,1720607435787,-500.0,0.00013698,2]
[331656981,1720607435796,-500.0,0.00013698,2]
[331656982,1720607435806,-624.51,0.00013698,2]
[331656983,1720607435816,-1230.19,0.00013698,2]
[331656984,1720607435826,-500.0,0.00013698,2]
[331656985,1720607435836,-500.0,0.00013698,2]
[331656986,1720607435845,-373.48592028,0.00013698,2]
[331656987,1720607435857,-500.0,0.00013698,2]
[331656988,1720607435866,-501.39,0.00013698,2]
[331656989,1720607435875,-500.0,0.00013698,2]
[331656990,1720607435885,-850.25,0.00013698,2]
[331656991,1720607435894,-500.0,0.00013698,2]
[331656992,1720607435904,-500.0,0.00013698,2]
[331656993,1720607435914,-500.0,0.00013698,2]
[331656994,1720607435923,-500.0,0.00013698,2]
[331656995,1720607435933,-500.0,0.00013698,2]
[331656996,1720607435943,-502.69,0.00013698,2]
[331656997,1720607435952,-520.12,0.00013698,2]
[331656998,1720607435962,-571.16,0.00013698,2]
[331656999,1720607435971,-500.0,0.00013698,2]
[331657000,1720607435981,-610.26,0.00013698,2]
[331657001,1720607435990,-500.0,0.00013698,2]
[331657002,1720607436000,-1046.61,0.00013698,2]
[331657003,1720607436009,-500.0,0.00013698,2]
[331657004,1720607436019,-500.0,0.00013698,2]
[331657005,1720607436028,-500.0,0.00013698,2]
[331657006,1720607436037,-500.0,0.00013698,2]
[331657007,1720607436047,-898.09,0.00013698,2]
[331657008,1720607436056,-500.0,0.00013698,2]
[331657009,1720607436065,-902.28,0.00013698,2]
[331657010,1720607436075,-500.0,0.00013698,2]
[331657011,1720607436084,-500.0,0.00013698,2]
[331657012,1720607436094,-500.0,0.00013698,2]
[331657013,1720607436103,-500.0,0.00013698,2]
[331657014,1720607436112,-771.35,0.00013698,2]
[331657015,1720607436121,-500.0,0.00013698,2]
[331657016,1720607436131,-500.0,0.00013698,2]
[331657017,1720607436140,-500.0,0.00013698,2]
[331657018,1720607436150,-500.0,0.00013698,2]
[331657019,1720607436161,-500.0,0.00013698,2]
[331657020,1720607436170,-500.0,0.00013698,2]
[331657021,1720607436179,-500.0,0.00013698,2]
[331657022,1720607436188,-500.0,0.00013698,2]
[331657023,1720607436198,-682.8,0.00013698,2]
[331657024,1720607436207,-628.85,0.00013698,2]
[331657025,1720607436218,-500.0,0.00013698,2]
[331657026,1720607436228,-534.15,0.00013698,2]
[331657027,1720607436238,-500.0,0.00013698,2]
[331657028,1720607436247,-500.0,0.00013698,2]
[331657029,1720607436257,-799.53,0.00013698,2]
[331657030,1720607436268,-500.0,0.00013698,2]
[331657031,1720607436278,-500.0,0.00013698,2]
[331657032,1720607436287,-500.0,0.00013698,2]
[331657033,1720607436296,-500.0,0.00013698,2]
[331657034,1720607436306,-500.0,0.00013698,2]
[331657035,1720607436315,-531.88,0.00013698,2]
[331657036,1720607436325,-720.98,0.00013698,2]
[331657037,1720607436334,-500.0,0.00013698,2]
[331657038,1720607436343,-500.0,0.00013698,2]
[331657039,1720607436352,-500.0,0.00013698,2]
[331657040,1720607436361,-500.0,0.00013698,2]
[331657041,1720607436372,-500.0,0.00013698,2]
[331657042,1720607436382,-500.0,0.00013698,2]
[331657043,1720607436391,-500.0,0.00013698,2]
[331657044,1720607436400,-500.0,0.00013698,2]
[331657045,1720607436409,-756.42,0.00013698,2]
[331657046,1720607436419,-729.74,0.00013698,2]
[331657047,1720607436429,-649.84,0.00013698,2]
[331657048,1720607436440,-500.0,0.00013698,2]
[331657049,1720607436450,-500.0,0.00013698,2]
[331657050,1720607436461,-1000.0,0.00013698,2]
[331657051,1720607436473,-500.0,0.00013698,2]
[331657052,1720607436485,-500.0,0.00013698,2]
[331657053,1720607436494,-700.01,0.00013698,2]
[331657054,1720607436503,-500.0,0.00013698,2]
[331657055,1720607436512,-500.0,0.00013698,2]
[331657056,1720607436522,-500.0,0.00013698,2]
[331657057,1720607436532,-500.0,0.00013698,2]
[331657058,1720607436541,-500.0,0.00013698,2]
[331657059,1720607436551,-500.0,0.00013698,2]
[331657060,1720607436560,-320.86,0.00013698,2]
[331657061,1720607436569,-507.65,0.00013698,2]
[331657062,1720607436579,-555.78,0.00013698,2]
[331657063,1720607436588,-712.52,0.00013698,2]
[331657064,1720607436598,-500.0,0.00013698,2]
[331657065,1720607436607,-500.0,0.00013698,2]
[331657066,1720607436617,-500.0,0.00013698,2]
[331657067,1720607436626,-979.13,0.00013698,2]
[331657068,1720607436635,-500.0,0.00013698,2]
[331657069,1720607436644,-522.93,0.00013698,2]
[331657070,1720607436654,-941.37,0.00013698,2]
[331657071,1720607436663,-500.0,0.00013698,2]
[331657072,1720607436672,-500.0,0.00013698,2]
[331657073,1720607436681,-388.65171933,0.00013698,2]
[331657074,1720607436691,-500.0,0.00013698,2]
[331657075,1720607436700,-500.0,0.00013698,2]
[331657076,1720607436711,-500.0,0.00013698,2]
[331657077,1720607436721,-530.34,0.00013698,2]
[331657078,1720607436730,-500.0,0.00013698,2]
[331657079,1720607436739,-500.0,0.00013698,2]
[331657080,1720607436749,-545.01,0.00013698,2]
[331657081,1720607436758,-500.0,0.00013698,2]
[331657082,1720607436767,-548.72,0.00013698,2]
[331657083,1720607436776,-500.0,0.00013698,2]
[331657084,1720607436786,-500.0,0.00013698,2]
[331657085,1720607436795,-500.0,0.00013698,2]
[331657086,1720607436804,-500.0,0.00013698,2]
[331657087,1720607436814,-500.0,0.00013698,2]
[331657088,1720607436823,-769.89,0.00013698,2]
[331657089,1720607436833,-500.0,0.00013698,2]
[331657090,1720607436843,-500.0,0.00013698,2]
[331657091,1720607436852,-518.72,0.00013698,2]
[331657092,1720607436861,-726.28,0.00013698,2]
[331657093,1720607436870,-500.0,0.00013698,2]
[331657094,1720607436879,-500.0,0.00013698,2]
[331657095,1720607436888,-500.0,0.00013698,2]
[331657096,1720607436897,-1271.09,0.00013698,2]
[331657097,1720607436906,-724.3,0.00013698,2]
[331657098,1720607436916,-710.55,0.00013698,2]
[331657099,1720607436925,-563.81,0.00013698,2]
[331657100,1720607436934,-500.0,0.00013698,2]
[331657101,1720607436943,-500.0,0.00013698,2]